[Event "European-ch Seniors 2018"]
[Site "Drammen"]
[Date "2018.08.05"]
[Round "2"]
[White "Karason, Askell Orn"]
[Black "Anguera Maestro, Jaime"]
[Result "1-0"]
[ECO "D35"]
[WhiteElo "2217"]
[BlackElo "2042"]
[Annotator "NA"]
[PlyCount "107"]
[EventDate "2018.08.04"]
[EventType "swiss"]
[EventCountry "NOR"]
[SourceTitle "playchess.com"]
[Source "ChessBase"]
[SourceQuality "1"]
[TimeControl "40/5400+30:1800+30"]

1. d4 {[%emt 0:00:00]} d5 {[%emt 0:00:04]} 2. c4 {[%emt 0:00:00]} e6 {[%emt 0:00:17]} 3. Nc3 {[%emt 0:00:00]} Nf6 {[%emt 0:00:06]} 4. cxd5 {[%emt 0:00:00]} exd5 {[%emt 0:00:17]} 5. Bg5 {[%emt 0:00:00]} c6 {[%emt 0:01:17]} 6. e3 {[%emt 0:00:02]} Be7 {[%emt 0:02:01]} 7. Qc2 {[%emt 0:00:05]} h6 {[%emt 0:02:29]} 8. Bh4 {[%emt 0:00:05]} O-O {[%emt 0:07:46]} 9. Bd3 {[%emt 0:00:11] LiveBook: 194 Games} b6 {[%emt 0:02:41]} 10. Nf3 {[%emt 0:00:57]} Ba6 {[%emt 0:00:49]} 11. Bxa6 {[%emt 0:04:45]} Nxa6 $14 {[%emt 0:00:02]} 12. Qe2 {[%emt 0:01:57]} Nb8 {[%emt 0:02:40]} 13. Rc1 {[%emt 0:05:50]} Ne4 {[%emt 0:12:37]} 14. Bxe7 {[%emt 0:24:15]} Qxe7 {[%emt 0:01:22]} 15. Nxe4 {[%emt 0:01:41]} Qxe4 {[%emt 0:00:25]} 16. O-O {[%emt 0:00:08]} f6 {[%emt 0:10:05]} 17. Rc3 {[%emt 0:02:03]} a5 {[%emt 0:05:44]} 18. Rfc1 {[%emt 0:03:19]} Ra7 {[%emt 0:01:41]} 19. Ne1 {[%emt 0:05:52]} Re8 {[%emt 0:03:52]} 20. Qh5 {[%emt 0:00:35]} Rae7 {[%emt 0:00:48]} 21. a3 {[%emt 0:01:42]} Qe6 {[%emt 0:18:23]} 22. Nd3 {[%emt 0:03:29]} Qf7 {[%emt 0:06:17]} 23. Qd1 {[%emt 0:00:57]} b5 {[%emt 0:01:17]} 24. g3 {[%emt 0:00:18]} Ra7 {[%emt 0:02:30]} 25. Nf4 {[%emt 0:05:48]} Rd7 {[%emt 0:02:21]} 26. Rc5 {[%emt 0:00:20]} Red8 {[%emt 0:00:42]} 27. a4 {[%emt 0:00:12]} bxa4 {[%emt 0:09:23]} 28. Qxa4 {[%emt 0:01:03]} h5 {[%emt 0:02:10]} 29. h4 {[%emt 0:03:40]} g5 {[%emt 0:00:02]} 30. Ng2 {[%emt 0:03:04]} Qe6 {[%emt 0:02:02]} 31. Qd1 {[%emt 0:03:00]} Qf7 {[%emt 0:01:34]} 32. Rxa5 {[%emt 0:00:09]} Rb7 {[%emt 0:00:17]} 33. Qc2 {[%emt 0:01:05]} Kg7 {[%emt 0:00:44]} 34. Ra8 {[%emt 0:02:24]} Qg6 {[%emt 0:00:22]} 35. Qc3 {[%emt 0:05:07]} Qe4 {[%emt 0:01:01]} 36. Rca1 {[%emt 0:01:33]} Rdd7 {[%emt 0:00:01]} 37. b4 {[%emt 0:01:06]} Qf3 {[%emt 0:00:23]} 38. R8a5 {[%emt 0:02:04]} Qe2 {[%emt 0:00:19]} 39. R1a2 {[%emt 0:01:11]} Qc4 {[%emt 0:00:56]} 40. Qxc4 {[%emt 0:00:00]} dxc4 {[%emt 0:00:00]} 41. R5a4 {[%emt 0:01:22]} Rb6 {[%emt 0:01:17]} 42. Rc2 {[%emt 0:00:15]} Rdb7 {[%emt 0:00:27]} 43. Rxc4 {[%emt 0:00:10]} Na6 {[%emt 0:00:11]} 44. Ra5 {[%emt 0:00:37]} Kh6 {[%emt 0:04:34]} 45. hxg5+ {[%emt 0:00:55]} fxg5 {[%emt 0:01:19]} 46. Ne1 {[%emt 0:14:04]} Nxb4 {[%emt 0:00:52]} 47. Re5 {[%emt 0:02:00]} Rf7 {[%emt 0:03:35]} 48. Re6+ {[%emt 0:03:55]} Kg7 {[%emt 0:02:46]} 49. Rc5 {[%emt 0:01:21]} Nd5 {[%emt 0:03:22]} 50. Rexc6 {[%emt 0:00:38]} Rb1 {[%emt 0:03:19]} 51. Rxd5 {[%emt 0:01:09]} Rxe1+ {[%emt 0:00:44]} 52. Kg2 {[%emt 0:00:03]} Re2 {[%emt 0:00:12]} 53. Rxg5+ {[%emt 0:00:06]} Kf8 {[%emt 0:00:17]} 54. Rc8+ {[%emt 0:00:05]} 1-0

[Event "European-ch Seniors 2018"]
[Site "Drammen"]
[Date "2018.08.05"]
[Round "2"]
[White "Burchardt, Brigitte"]
[Black "Birkholz, Olga"]
[Result "1-0"]
[ECO "B26"]
[WhiteElo "2189"]
[BlackElo "2048"]
[Annotator "NA"]
[PlyCount "99"]
[EventDate "2018.08.04"]
[EventType "swiss"]
[EventCountry "NOR"]
[SourceTitle "playchess.com"]
[Source "ChessBase"]
[SourceQuality "1"]
[TimeControl "40/5400+30:1800+30"]

1. e4 {[%emt 0:00:00]} c5 {[%emt 0:00:00]} 2. Nc3 {[%emt 0:00:00]} d6 {[%emt 0:00:00]} 3. g3 {[%emt 0:00:00]} Nc6 {[%emt 0:00:00]} 4. Bg2 {[%emt 0:00:01]} g6 {[%emt 0:00:00]} 5. d3 {[%emt 0:00:46]} Bg7 {[%emt 0:00:00]} 6. Be3 {[%emt 0:00:10]} Nd4 {[%emt 0:00:32]} 7. Qd2 {[%emt 0:02:06]} Rb8 {[%emt 0:00:50]} 8. Nd1 {[%emt 0:03:50]} Nf6 {[%emt 0:03:00]} 9. c3 {[%emt 0:00:37]} Nc6 {[%emt 0:00:49]} 10. h3 {[%emt 0:01:48]} Qc7 {[%emt 0:03:38]} 11. Ne2 {[%emt 0:01:47]} b5 {[%emt 0:07:02]} 12. O-O {[%emt 0:07:07]} O-O {[%emt 0:02:56]} 13. Rc1 {[%emt 0:15:10]} Ne5 {[%emt 0:19:38]} 14. f4 {[%emt 0:01:58]} Ned7 {[%emt 0:00:10]} 15. Nf2 {[%emt 0:04:04]} Bb7 {[%emt 0:02:20]} 16. d4 {[%emt 0:05:10]} Nb6 {[%emt 0:02:08]} 17. b3 {[%emt 0:02:04]} c4 {[%emt 0:06:32]} 18. b4 {[%emt 0:13:33]} d5 {[%emt 0:12:04]} 19. e5 {[%emt 0:01:05]} Ne4 {[%emt 0:01:39]} 20. Nxe4 {[%emt 0:01:11]} dxe4 {[%emt 0:00:02]} 21. f5 {[%emt 0:01:14]} Qc6 {[%emt 0:08:02]} 22. g4 {[%emt 0:04:12]} Rfd8 {[%emt 0:09:46]} 23. fxg6 {[%emt 0:11:46]} hxg6 {[%emt 0:04:44]} 24. Qe1 {[%emt 0:04:48]} Nd5 {[%emt 0:06:27]} 25. Bxe4 {[%emt 0:01:32]} Qa6 {[%emt 0:01:55]} 26. Nf4 {[%emt 0:05:43]} Nxe3 {[%emt 0:03:03]} 27. Qxe3 {[%emt 0:00:06]} e6 {[%emt 0:00:58]} 28. Rc2 {[%emt 0:02:36]} Bh6 {[%emt 0:00:34]} 29. h4 {[%emt 0:01:09]} Bxf4 {[%emt 0:00:56]} 30. Qxf4 {[%emt 0:00:32]} Rd7 {[%emt 0:00:22]} 31. Rcf2 {[%emt 0:00:39]} Bxe4 {[%emt 0:00:53]} 32. Qxe4 {[%emt 0:00:06]} Qb7 {[%emt 0:00:42]} 33. Qf4 {[%emt 0:00:34]} Qc8 {[%emt 0:00:52]} 34. h5 {[%emt 0:01:04]} Qd8 {[%emt 0:01:02]} 35. hxg6 {[%emt 0:01:57]} fxg6 {[%emt 0:00:11]} 36. Qh6 {[%emt 0:00:44]} Rh7 {[%emt 0:02:38]} 37. Qxg6+ {[%emt 0:00:09]} Kh8 {[%emt 0:00:09]} 38. Rf7 {[%emt 0:02:14]} Qg8 {[%emt 0:00:02]} 39. Rxh7+ {[%emt 0:00:51]} Qxh7 {[%emt 0:00:01]} 40. Qf6+ {[%emt 0:00:00]} Qg7 {[%emt 0:00:00]} 41. Kg2 {[%emt 0:03:18]} Qxf6 {[%emt 0:02:52]} 42. Rxf6 {[%emt 0:01:03]} Rb6 {[%emt 0:02:48]} 43. Kf3 {[%emt 0:00:46]} Kg7 {[%emt 0:01:11]} 44. g5 {[%emt 0:00:29]} Kg8 {[%emt 0:03:59]} 45. d5 {[%emt 0:01:05]} exd5 {[%emt 0:00:21]} 46. Rxb6 {[%emt 0:00:11]} axb6 {[%emt 0:00:02]} 47. Ke3 {[%emt 0:00:12]} Kf7 {[%emt 0:00:14]} 48. Kd4 {[%emt 0:00:05]} Ke6 {[%emt 0:00:07]} 49. g6 {[%emt 0:00:16]} Ke7 {[%emt 0:00:13]} 50. Kxd5 {[%emt 0:00:06]} 1-0

[Event "European-ch Seniors 2018"]
[Site "Drammen"]
[Date "2018.08.05"]
[Round "2"]
[White "Vinke, Dietmar"]
[Black "Ogaard, Leif"]
[Result "0-1"]
[ECO "A05"]
[WhiteElo "2166"]
[BlackElo "2386"]
[Annotator "NA"]
[PlyCount "56"]
[EventDate "2018.08.04"]
[EventType "swiss"]
[EventCountry "NOR"]
[SourceTitle "playchess.com"]
[Source "ChessBase"]
[SourceQuality "1"]
[TimeControl "40/5400+30:1800+30"]

1. Nf3 {[%emt 0:00:00]} Nf6 {[%emt 0:00:00]} 2. g3 {[%emt 0:00:00]} d5 {[%emt 0:00:11]} 3. Bg2 {[%emt 0:00:00]} c6 {[%emt 0:00:45]} 4. d4 {[%emt 0:00:17]} Bf5 {[%emt 0:01:03]} 5. O-O {[%emt 0:06:02]} e6 {[%emt 0:01:21]} 6. b3 {[%emt 0:00:28]} Bd6 {[%emt 0:04:54]} 7. Bb2 {[%emt 0:01:34]} O-O {[%emt 0:00:43]} 8. Nbd2 {[%emt 0:02:18]} h6 $11 {[%emt 0:01:38]} 9. c4 {[%emt 0:09:38]} Nbd7 {[%emt 0:01:11]} 10. Re1 {[%emt 0:09:07]} Bh7 {[%emt 0:02:24]} 11. Rc1 {[%emt 0:23:25]} Re8 {[%emt 0:12:57]} 12. c5 {[%emt 0:06:42]} Bc7 {[%emt 0:01:02]} 13. Ne5 {[%emt 0:00:27]} Nxe5 {[%emt 0:05:32]} 14. dxe5 {[%emt 0:00:05]} Nd7 {[%emt 0:01:06]} 15. f4 {[%emt 0:02:16]} b6 {[%emt 0:02:46]} 16. cxb6 {[%emt 0:03:24]} Bxb6+ {[%emt 0:00:45]} 17. Kh1 {[%emt 0:00:08]} Rc8 {[%emt 0:00:49]} 18. e4 {[%emt 0:00:15]} Nc5 {[%emt 0:02:20]} 19. Ba3 {[%emt 0:10:55]} Nd3 {[%emt 0:01:52]} 20. Rf1 {[%emt 0:00:05]} Nxc1 {[%emt 0:01:00]} 21. Qxc1 {[%emt 0:07:36]} Be3 {[%emt 0:04:31]} 22. Bc5 {[%emt 0:00:42]} Bxc5 {[%emt 0:04:02]} 23. Qxc5 {[%emt 0:00:04]} Qb6 {[%emt 0:00:18]} 24. Rc1 {[%emt 0:00:45]} Qxc5 {[%emt 0:00:43]} 25. Rxc5 {[%emt 0:00:03]} Red8 {[%emt 0:00:22]} 26. Kg1 {[%emt 0:01:23]} dxe4 {[%emt 0:00:42]} 27. Nxe4 {[%emt 0:00:02]} Bxe4 {[%emt 0:00:19]} 28. Bxe4 {[%emt 0:00:04]} Rd1+ {[%emt 0:00:20]} 0-1

[Event "European-ch Seniors 2018"]
[Site "Drammen"]
[Date "2018.08.05"]
[Round "2"]
[White "Malmdin, Nils Ake"]
[Black "Stebbings, Anthony"]
[Result "1/2-1/2"]
[ECO "B43"]
[WhiteElo "2135"]
[BlackElo "2265"]
[Annotator "NA"]
[PlyCount "57"]
[EventDate "2018.08.04"]
[EventType "swiss"]
[EventCountry "NOR"]
[SourceTitle "playchess.com"]
[Source "ChessBase"]
[SourceQuality "1"]
[TimeControl "40/5400+30:1800+30"]

1. e4 {[%emt 0:00:00]} c5 {[%emt 0:00:00]} 2. Nc3 {[%emt 0:01:00]} e6 {[%emt 0:00:00]} 3. Nf3 {[%emt 0:02:28]} a6 {[%emt 0:00:00]} 4. d4 {[%emt 0:00:37]} cxd4 {[%emt 0:00:03]} 5. Nxd4 {[%emt 0:00:13]} Qc7 {[%emt 0:00:06]} 6. Bd3 {[%emt 0:02:30]} Nf6 {[%emt 0:00:30]} 7. f4 {[%emt 0:02:34]} d6 {[%emt 0:01:07]} 8. Qf3 {[%emt 0:00:51]} Nbd7 {[%emt 0:01:45]} 9. a4 {[%emt 0:11:26]} b6 $11 {[%emt 0:02:49]} 10. g4 {[%emt 0:22:52]} Nc5 {[%emt 0:02:29]} 11. g5 {[%emt 0:00:46]} Nfd7 {[%emt 0:00:11]} 12. Bd2 {[%emt 0:05:42]} Bb7 {[%emt 0:00:38]} 13. b4 {[%emt 0:01:57]} Nxd3+ {[%emt 0:00:11]} 14. cxd3 {[%emt 0:00:03]} d5 {[%emt 0:12:35]} 15. Rb1 {[%emt 0:01:48]} dxe4 {[%emt 0:02:00]} 16. Nxe4 {[%emt 0:01:10]} Bd5 {[%emt 0:03:33]} 17. Rc1 {[%emt 0:02:33]} Qb7 {[%emt 0:00:16]} 18. O-O {[%emt 0:05:26]} Be7 {[%emt 0:01:21]} 19. Rfe1 {[%emt 0:03:11]} O-O {[%emt 0:09:38]} 20. f5 {[%emt 0:06:46]} exf5 {[%emt 0:05:04]} 21. Nxf5 {[%emt 0:00:47]} Rfe8 {[%emt 0:00:55]} 22. Qg3 {[%emt 0:01:11]} Bxe4 {[%emt 0:07:27]} 23. Rxe4 {[%emt 0:00:14]} Bf8 {[%emt 0:00:28]} 24. Nh6+ {[%emt 0:09:04]} Kh8 {[%emt 0:06:02]} 25. Nxf7+ {[%emt 0:00:22]} Kg8 {[%emt 0:00:02]} 26. Nh6+ {[%emt 0:01:40]} Kh8 {[%emt 0:00:01]} 27. Nf7+ {[%emt 0:03:53]} Kg8 {[%emt 0:00:04]} 28. Nh6+ {[%emt 0:08:29]} Kh8 {[%emt 0:00:12]} 29. Nf7+ {[%emt 0:00:03]} 1/2-1/2

[Event "European-ch Seniors 2018"]
[Site "Drammen"]
[Date "2018.08.05"]
[Round "2"]
[White "Neumann, Joachim"]
[Black "Barle, Janez"]
[Result "0-1"]
[ECO "A10"]
[WhiteElo "2124"]
[BlackElo "2249"]
[Annotator "NA"]
[PlyCount "86"]
[EventDate "2018.08.04"]
[EventType "swiss"]
[EventCountry "NOR"]
[SourceTitle "playchess.com"]
[Source "ChessBase"]
[SourceQuality "1"]
[TimeControl "40/5400+30:1800+30"]

1. c4 {[%emt 0:00:00]} Nc6 {[%emt 0:00:13]} 2. g3 {[%emt 0:00:27]} e5 {[%emt 0:00:19]} 3. Bg2 {[%emt 0:00:30]} f5 {[%emt 0:00:24]} 4. Nc3 {[%emt 0:01:25]} Nf6 {[%emt 0:00:14]} 5. e3 {[%emt 0:08:03]} d5 $14 {[%emt 0:03:14]} 6. cxd5 {[%emt 0:16:28]} Nb4 {[%emt 0:00:41]} 7. d3 {[%emt 0:00:40]} Nfxd5 {[%emt 0:02:09]} 8. Nxd5 {[%emt 0:08:59]} Nxd5 {[%emt 0:01:18]} 9. Ne2 {[%emt 0:02:34]} Bb4+ {[%emt 0:11:24]} 10. Bd2 {[%emt 0:00:45]} Bxd2+ {[%emt 0:00:49]} 11. Qxd2 {[%emt 0:00:05]} O-O {[%emt 0:04:45]} 12. O-O {[%emt 0:04:26]} c6 {[%emt 0:08:01]} 13. Rfd1 {[%emt 0:12:45]} Be6 {[%emt 0:01:56]} 14. d4 {[%emt 0:01:19]} e4 {[%emt 0:00:39]} 15. Nf4 {[%emt 0:00:09]} Nxf4 {[%emt 0:00:29]} 16. gxf4 {[%emt 0:00:01]} Rf6 {[%emt 0:02:53]} 17. h3 {[%emt 0:04:58]} Rh6 {[%emt 0:02:52]} 18. Kh2 {[%emt 0:00:56]} Qh4 {[%emt 0:01:39]} 19. Rg1 {[%emt 0:00:33]} Kh8 {[%emt 0:00:51]} 20. Bf1 {[%emt 0:05:09]} Rg8 {[%emt 0:05:00]} 21. Rg5 {[%emt 0:04:50]} Rf6 {[%emt 0:01:47]} 22. Qe2 {[%emt 0:03:34]} g6 {[%emt 0:02:21]} 23. Rg3 {[%emt 0:04:20]} g5 {[%emt 0:03:36]} 24. Rxg5 {[%emt 0:06:07]} Rxg5 {[%emt 0:00:14]} 25. fxg5 {[%emt 0:00:01]} Qxg5 {[%emt 0:00:30]} 26. Bg2 {[%emt 0:03:47]} f4 {[%emt 0:06:12]} 27. exf4 {[%emt 0:01:03]} Qxf4+ {[%emt 0:03:34]} 28. Kh1 {[%emt 0:02:34]} Qxf2 {[%emt 0:07:08]} 29. Qxe4 {[%emt 0:02:33]} Qf5 {[%emt 0:23:20]} 30. Qxf5 {[%emt 0:02:33]} Rxf5 {[%emt 0:01:45]} 31. a3 {[%emt 0:00:12]} Rf2 {[%emt 0:03:00]} 32. Re1 {[%emt 0:01:34]} Bc4 {[%emt 0:00:27]} 33. Re8+ {[%emt 0:00:56]} Kg7 {[%emt 0:00:13]} 34. Re7+ {[%emt 0:00:03]} Rf7 {[%emt 0:00:09]} 35. Rxf7+ {[%emt 0:00:24]} Kxf7 {[%emt 0:00:12]} 36. Kg1 {[%emt 0:00:01]} Ke6 {[%emt 0:00:24]} 37. Kf2 {[%emt 0:00:03]} Bd5 {[%emt 0:00:25]} 38. Bf1 {[%emt 0:00:57]} Kf5 {[%emt 0:00:43]} 39. Ke3 {[%emt 0:02:20]} Kg5 {[%emt 0:00:35]} 40. Be2 {[%emt 0:00:00]} Be6 {[%emt 0:00:00]} 41. Bf3 {[%emt 0:12:56]} Bxh3 {[%emt 0:01:54]} 42. d5 {[%emt 0:00:02]} Bd7 {[%emt 0:00:59]} 43. d6 {[%emt 0:00:51]} Kf6 {[%emt 0:01:10]} 0-1

[Event "European-ch Seniors 2018"]
[Site "Drammen"]
[Date "2018.08.05"]
[Round "2"]
[White "Zhelesny, Stanislav"]
[Black "Lederman, Leon S"]
[Result "0-1"]
[ECO "A05"]
[WhiteElo "2077"]
[BlackElo "2245"]
[Annotator "NA"]
[PlyCount "176"]
[EventDate "2018.08.04"]
[EventType "swiss"]
[EventCountry "NOR"]
[SourceTitle "playchess.com"]
[Source "ChessBase"]
[SourceQuality "1"]
[TimeControl "40/5400+30:1800+30"]

1. Nf3 {[%emt 0:00:00]} Nf6 {[%emt 0:00:00]} 2. g3 {[%emt 0:00:00]} d5 {[%emt 0:00:00]} 3. d4 {[%emt 0:00:00]} Bf5 {[%emt 0:00:12]} 4. Bg2 {[%emt 0:00:18]} c6 {[%emt 0:00:06]} 5. c3 {[%emt 0:01:01]} h6 {[%emt 0:00:05]} 6. Nbd2 {[%emt 0:00:56]} Nbd7 {[%emt 0:01:30]} 7. Qb3 {[%emt 0:06:08]} Qc7 {[%emt 0:01:20]} 8. Nf1 {[%emt 0:05:25]} e6 {[%emt 0:07:31]} 9. Bf4 {[%emt 0:01:41]} Bd6 {[%emt 0:00:45]} 10. Bxd6 {[%emt 0:01:28]} Qxd6 $11 {[%emt 0:00:04]} 11. Ne3 {[%emt 0:08:44]} Bh7 {[%emt 0:01:08]} 12. O-O {[%emt 0:02:14]} O-O {[%emt 0:00:08]} 13. c4 {[%emt 0:01:15]} Rab8 {[%emt 0:02:52]} 14. Rac1 {[%emt 0:02:45]} Ne4 {[%emt 0:03:30]} 15. Qa3 {[%emt 0:03:01]} Qxa3 {[%emt 0:05:46]} 16. bxa3 {[%emt 0:00:02]} f5 {[%emt 0:00:58]} 17. Rfd1 {[%emt 0:06:14]} f4 {[%emt 0:02:27]} 18. gxf4 {[%emt 0:05:09]} Rxf4 {[%emt 0:00:08]} 19. Bh3 {[%emt 0:00:44]} Nf8 {[%emt 0:00:42]} 20. Bg2 {[%emt 0:06:37]} Ng6 {[%emt 0:03:56]} 21. Rf1 {[%emt 0:07:45]} Rbf8 {[%emt 0:03:43]} 22. Bh3 {[%emt 0:03:57]} R4f6 {[%emt 0:02:25]} 23. Ng4 {[%emt 0:02:14]} Nf4 {[%emt 0:00:20]} 24. Nxf6+ {[%emt 0:01:00]} Rxf6 {[%emt 0:00:06]} 25. Bg2 {[%emt 0:01:24]} Nxe2+ {[%emt 0:00:28]} 26. Kh1 {[%emt 0:00:01]} Nxc1 {[%emt 0:00:16]} 27. Rxc1 {[%emt 0:00:13]} Nxf2+ {[%emt 0:00:08]} 28. Kg1 {[%emt 0:00:11]} Nd3 {[%emt 0:00:32]} 29. Rc3 {[%emt 0:00:53]} Be4 {[%emt 0:03:59]} 30. Nd2 {[%emt 0:02:08]} Bg6 {[%emt 0:03:59]} 31. Bf1 {[%emt 0:02:42]} Nf4 {[%emt 0:00:30]} 32. Re3 {[%emt 0:00:24]} Bh5 {[%emt 0:03:31]} 33. a4 {[%emt 0:01:28]} b6 {[%emt 0:03:18]} 34. a5 {[%emt 0:01:47]} bxa5 {[%emt 0:00:42]} 35. Nb3 {[%emt 0:00:49]} a4 {[%emt 0:01:20]} 36. Na5 {[%emt 0:00:40]} Be8 {[%emt 0:00:35]} 37. Nb7 {[%emt 0:01:11]} Kf7 {[%emt 0:01:18]} 38. Nc5 {[%emt 0:01:30]} Rf5 {[%emt 0:13:30]} 39. Ra3 {[%emt 0:01:10]} e5 {[%emt 0:01:08]} 40. dxe5 {[%emt 0:00:00]} Rxe5 {[%emt 0:00:00]} 41. Rxa4 {[%emt 0:05:40]} Re7 {[%emt 0:05:18]} 42. cxd5 {[%emt 0:05:47]} Nxd5 {[%emt 0:01:17]} 43. Ne4 {[%emt 0:02:51]} Ke6 {[%emt 0:03:11]} 44. Bh3+ {[%emt 0:01:43]} Ke5 {[%emt 0:00:11]} 45. Nd2 {[%emt 0:11:25]} Bg6 {[%emt 0:00:33]} 46. Nc4+ {[%emt 0:02:29]} Kf6 {[%emt 0:03:54]} 47. Na5 {[%emt 0:02:14]} Nb6 {[%emt 0:07:45]} 48. Rd4 {[%emt 0:06:09]} c5 {[%emt 0:02:28]} 49. Rd6+ {[%emt 0:03:16]} Kg5 {[%emt 0:00:06]} 50. Rc6 {[%emt 0:02:21]} Na4 {[%emt 0:01:12]} 51. Bf1 {[%emt 0:03:22]} Be8 {[%emt 0:01:43]} 52. Rc8 {[%emt 0:00:27]} Kf4 {[%emt 0:05:00]} 53. Kf2 {[%emt 0:00:42]} Nc3 {[%emt 0:02:05]} 54. Bd3 {[%emt 0:03:26]} Nd1+ {[%emt 0:05:19]} 55. Kg2 {[%emt 0:01:32]} Re3 {[%emt 0:08:07]} 56. Ba6 {[%emt 0:00:46]} Bd7 {[%emt 0:12:01]} 57. Rf8+ {[%emt 0:00:12]} Kg5 {[%emt 0:00:47]} 58. Bc8 {[%emt 0:00:48]} Bxc8 {[%emt 0:00:23]} 59. Rxc8 {[%emt 0:00:03]} Re2+ {[%emt 0:00:05]} 60. Kg3 {[%emt 0:00:30]} Re3+ {[%emt 0:02:37]} 61. Kg2 {[%emt 0:00:11]} Rc3 {[%emt 0:00:04]} 62. Nb3 {[%emt 0:01:35]} c4 {[%emt 0:00:17]} 63. Nd4 {[%emt 0:00:29]} Rd3 {[%emt 0:01:25]} 64. Ne6+ {[%emt 0:01:07]} Kf6 {[%emt 0:01:40]} 65. Nf4 {[%emt 0:00:49]} Rd2+ {[%emt 0:00:42]} 66. Kf3 {[%emt 0:00:44]} c3 {[%emt 0:00:35]} 67. h4 {[%emt 0:01:58]} g5 {[%emt 0:01:21]} 68. Rc6+ {[%emt 0:01:00]} Ke7 {[%emt 0:00:41]} 69. Ng6+ {[%emt 0:00:33]} Kd8 {[%emt 0:00:17]} 70. hxg5 {[%emt 0:00:39]} hxg5 {[%emt 0:00:06]} 71. Ne5 {[%emt 0:00:29]} Rd4 {[%emt 0:04:16]} 72. Kg3 {[%emt 0:01:30]} Rd5 {[%emt 0:00:43]} 73. Ng4 {[%emt 0:00:23]} Kd7 {[%emt 0:00:47]} 74. Rc4 {[%emt 0:00:12]} Rd3+ {[%emt 0:00:48]} 75. Kg2 {[%emt 0:00:17]} Kd6 {[%emt 0:00:19]} 76. Kf1 {[%emt 0:01:14]} Nb2 {[%emt 0:01:24]} 77. Rc8 {[%emt 0:00:35]} Rd1+ {[%emt 0:00:39]} 78. Ke2 {[%emt 0:00:20]} Rd2+ {[%emt 0:00:01]} 79. Kf3 {[%emt 0:01:18]} Nd1 {[%emt 0:00:13]} 80. Rd8+ {[%emt 0:00:34]} Ke6 {[%emt 0:00:22]} 81. Rxd2 {[%emt 0:00:10]} cxd2 {[%emt 0:00:00]} 82. Ke2 {[%emt 0:00:20]} Nc3+ {[%emt 0:00:08]} 83. Kxd2 {[%emt 0:00:02]} Nxa2 {[%emt 0:00:05]} 84. Kc2 {[%emt 0:00:34]} Nb4+ {[%emt 0:01:00]} 85. Kb3 {[%emt 0:00:03]} Nc6 {[%emt 0:00:09]} 86. Nh6 {[%emt 0:01:01]} Ke5 {[%emt 0:00:40]} 87. Kc4 {[%emt 0:00:19]} Kf4 {[%emt 0:00:07]} 88. Kc5 {[%emt 0:00:16]} a5 {[%emt 0:00:29] Kd4 Ke5+} 0-1

[Event "European-ch Seniors 2018"]
[Site "Drammen"]
[Date "2018.08.05"]
[Round "2"]
[White "Harstad, Christian"]
[Black "Clark, Gary M"]
[Result "0-1"]
[ECO "D97"]
[WhiteElo "1985"]
[BlackElo "2285"]
[Annotator "NA"]
[PlyCount "68"]
[EventDate "2018.08.04"]
[EventType "swiss"]
[EventCountry "NOR"]
[SourceTitle "playchess.com"]
[Source "ChessBase"]
[SourceQuality "1"]
[TimeControl "40/5400+30:1800+30"]

1. d4 {[%emt 0:00:00]} Nf6 {[%emt 0:00:00]} 2. c4 {[%emt 0:00:00]} g6 {[%emt 0:00:12]} 3. Nc3 {[%emt 0:00:00]} d5 {[%emt 0:00:41]} 4. Nf3 {[%emt 0:00:00]} Bg7 {[%emt 0:00:36]} 5. Qb3 {[%emt 0:00:05]} dxc4 {[%emt 0:00:58]} 6. Qxc4 {[%emt 0:00:08]} O-O {[%emt 0:01:25]} 7. e4 {[%emt 0:00:20]} Nc6 {[%emt 0:01:28]} 8. Be3 {[%emt 0:06:01]} Ng4 {[%emt 0:01:57]} 9. O-O-O {[%emt 0:04:28]} Bd7 $11 {[%emt 0:04:11]} 10. h3 {[%emt 0:08:50]} Nxe3 {[%emt 0:00:32]} 11. fxe3 {[%emt 0:00:04]} Na5 {[%emt 0:13:22]} 12. Qb4 {[%emt 0:12:14]} c6 {[%emt 0:08:22]} 13. g4 {[%emt 0:06:34]} Re8 {[%emt 0:03:08]} 14. Qa3 {[%emt 0:11:39]} b5 {[%emt 0:02:52]} 15. Qc5 {[%emt 0:03:35]} h6 {[%emt 0:12:23]} 16. Ne2 {[%emt 0:13:42]} Nc4 {[%emt 0:01:36]} 17. Nf4 {[%emt 0:08:11]} Nxe3 {[%emt 0:03:10]} 18. Rd3 {[%emt 0:02:34]} Nc4 {[%emt 0:00:34]} 19. g5 {[%emt 0:02:25]} e6 {[%emt 0:01:53]} 20. Qb4 {[%emt 0:10:14]} hxg5 {[%emt 0:00:12]} 21. Nxg6 {[%emt 0:01:25]} fxg6 {[%emt 0:00:51]} 22. Rg1 {[%emt 0:00:49]} Qf6 {[%emt 0:09:58]} 23. e5 {[%emt 0:01:11]} Qf4+ {[%emt 0:00:32]} 24. Kb1 {[%emt 0:00:24]} Nxe5 {[%emt 0:00:29]} 25. Nxe5 {[%emt 0:03:37]} Bxe5 {[%emt 0:00:02]} 26. Qc3 {[%emt 0:01:36]} b4 {[%emt 0:01:47]} 27. Qe1 {[%emt 0:00:50]} Bg7 {[%emt 0:02:17]} 28. Bg2 {[%emt 0:01:15]} e5 {[%emt 0:02:09]} 29. Rf3 {[%emt 0:01:29]} Bf5+ {[%emt 0:00:26]} 30. Ka1 {[%emt 0:00:05]} exd4 {[%emt 0:00:07]} 31. Qxb4 {[%emt 0:00:24]} Rab8 {[%emt 0:00:36]} 32. Qc4+ {[%emt 0:00:48]} Be6 {[%emt 0:00:02]} 33. Rxf4 {[%emt 0:00:49]} Bxc4 {[%emt 0:00:03]} 34. Rg4 {[%emt 0:00:41]} d3 {[%emt 0:00:28]} 0-1